fUSD/lending_fUSD_20241202
["ID","MTS","AMOUNT","RATE_DAILY","PERIOD"]
[343989387,1733169883071,-500.0,0.00026917,120]
[343989388,1733169883110,-948.79,0.00026917,120]
[343989389,1733169883151,-3325.5,0.00026917,120]
[343989390,1733169883194,-581.49,0.00026917,120]
[343989391,1733169883237,-503.19,0.00026917,120]
[343989392,1733169883275,-1663.95,0.00026917,120]
[343989393,1733169883316,-1118.58,0.00026917,120]
[343989394,1733169883357,-745.04,0.00026917,120]
[343989395,1733169883398,-500.0,0.00026917,120]
[343989396,1733169883439,-500.0,0.00026917,120]
[343989397,1733169883477,-1284.07,0.00026917,120]
[343989398,1733169883517,-890.64,0.00026917,120]
[343989399,1733169883557,-917.02,0.00026917,120]
[343989400,1733169883598,-500.0,0.00026917,120]
[343989401,1733169883641,-580.95,0.00026917,120]
[343989402,1733169883685,-500.0,0.00026917,120]
[343989403,1733169883727,-6207.23,0.00026917,120]
[343989404,1733169883768,-1114.51,0.00026917,60]
[343989405,1733169883807,-2448.92,0.00026917,120]
[343989406,1733169883845,-500.0,0.00026917,120]
[343989407,1733169883882,-1950.33,0.00026917,120]
[343989408,1733169883921,-3054.87,0.00026917,120]
[343989409,1733169883960,-870.88,0.00026917,120]
[343989410,1733169884004,-2228.68,0.00026917,120]
[343989411,1733169884042,-500.0,0.00026917,120]
[343989412,1733169884080,-923.08,0.00026917,120]
[343989413,1733169884120,-500.0,0.00026917,120]
[343989414,1733169884159,-544.54,0.00026917,120]
[343989415,1733169884197,-500.0,0.00026917,120]
[343989416,1733169884238,-500.0,0.00026917,120]
[343989417,1733169884279,-1092.9,0.00026917,120]
[343989418,1733169884320,-571.61,0.00026917,120]
[343989419,1733169884361,-500.0,0.00026917,120]
[343989420,1733169884401,-811.66,0.00026917,120]
[343989421,1733169884443,-2196.28,0.00026917,120]
[343989422,1733169884486,-500.0,0.00026917,120]
[343989423,1733169884532,-500.0,0.00026917,120]
[343989424,1733169884590,-684.17,0.00026917,120]
[343989425,1733169884634,-323.45315857,0.00026917,120]
[343989426,1733169884681,-446.8430479,0.00026917,120]
[343989427,1733169884726,-2668.13,0.00026917,120]
[343989428,1733169884766,-663.27,0.00026917,120]
[343989429,1733169884804,-500.0,0.00026917,120]
[343989430,1733169884846,-535.28,0.00026917,120]
[343989431,1733169884887,-500.0,0.00026917,120]
[343989432,1733169884927,-895.09,0.00026917,120]
[343989433,1733169884966,-500.0,0.00026917,120]
[343989434,1733169885007,-1975.86,0.00026917,120]
[343989435,1733169885047,-500.0,0.00026917,120]
[343989436,1733169885085,-500.0,0.00026917,120]
[343989437,1733169885124,-978.51,0.00026917,120]
[343989438,1733169885161,-1404.4,0.00026917,120]
[343989439,1733169885197,-3927.33,0.00026917,120]
[343989440,1733169885234,-4766.8,0.00026917,120]
[343989441,1733169885272,-500.0,0.00026917,120]
[343989442,1733169885313,-1607.08,0.00026917,120]
[343989443,1733169885352,-500.0,0.00026917,120]
[343989444,1733169885655,-841.46,0.00026917,120]
[343989445,1733169885697,-2073.17,0.00026917,120]
[343989446,1733169885744,-2877.76,0.00026917,120]
[343989447,1733169885784,-1140.61,0.00026917,120]
[343989448,1733169885824,-682.14,0.00026917,120]
[343989449,1733169885868,-729.35,0.00026917,120]
[343989450,1733169885909,-500.0,0.00026917,120]
[343989451,1733169885956,-522.94,0.00026917,120]
[343989452,1733169886001,-500.0,0.00026917,120]
[343989453,1733169886042,-823.11,0.00026917,120]
[343989454,1733169886082,-2298.11,0.00026917,120]
[343989455,1733169886124,-3498.94,0.00026917,120]
[343989456,1733169886166,-1433.32,0.00026917,120]
[343989457,1733169886207,-500.0,0.00026917,120]
[343989458,1733169886251,-500.0,0.00026917,120]
[343989459,1733169886293,-1432.32,0.00026917,120]
[343989460,1733169886334,-1134.59,0.00026917,120]
[343989461,1733169886376,-718.76,0.00026917,120]
[343989462,1733169886420,-1883.27,0.00026917,120]
[343989463,1733169886465,-500.0,0.00026917,120]
[343989464,1733169886516,-2924.44,0.00026917,120]
[343989465,1733169886561,-2057.6,0.00026917,120]
[343989466,1733169886608,-500.0,0.00026917,120]
[343989467,1733169886654,-494.28941424,0.00026917,120]
[343989468,1733169886696,-500.0,0.00026917,120]
[343989469,1733169886738,-7028.86,0.00026917,120]
[343989470,1733169886778,-1803.13,0.00026917,120]
[343989471,1733169886823,-500.0,0.00026917,120]
[343989472,1733169886863,-3102.05,0.00026917,120]
[343989473,1733169886900,-500.0,0.00026917,120]
[343989474,1733169886939,-1541.69,0.00026917,120]
[343989475,1733169886984,-903.21,0.00026917,120]
[343989476,1733169887022,-500.0,0.00026917,120]
[343989477,1733169887060,-500.0,0.00026917,120]
[343989478,1733169887098,-500.0,0.00026917,120]
[343989479,1733169887137,-1049.47,0.00026917,120]
[343989480,1733169887176,-806.28,0.00026917,120]
[343989481,1733169887215,-1062.78,0.00026917,120]
[343989482,1733169887256,-500.0,0.00026917,120]
[343989483,1733169887300,-500.0,0.00026917,120]
[343989484,1733169887339,-558.31387939,0.00026917,120]
[343989485,1733169887378,-5322.29,0.00026917,120]
[343989486,1733169887417,-529.81,0.00026917,120]
[343989487,1733169887456,-1613.46,0.00026917,120]
[343989488,1733169887500,-663.6,0.00026917,120]
[343989489,1733169887541,-880.7,0.00026917,120]
[343989490,1733169887582,-500.0,0.00026917,120]
[343989491,1733169887625,-500.0,0.00026917,120]
[343989492,1733169887668,-500.0,0.00026917,120]
[343989493,1733169887710,-500.0,0.00026917,120]
[343989494,1733169887759,-683.6,0.00026917,120]
[343989495,1733169887799,-2061.14,0.00026917,30]
[343989496,1733169887839,-500.0,0.00026917,120]
[343989497,1733169887879,-1353.46,0.00026917,120]
[343989498,1733169887920,-584.0,0.00026917,120]
[343989499,1733169887960,-721.18,0.00026917,120]
[343989500,1733169888001,-500.0,0.00026917,120]
[343989501,1733169888040,-500.0,0.00026917,120]
[343989502,1733169888079,-500.0,0.00026917,120]
[343989503,1733169888120,-1668.31,0.00026917,120]
[343989504,1733169888160,-500.0,0.00026917,120]
[343989505,1733169888203,-500.0,0.00026917,120]
[343989506,1733169888241,-500.0,0.00026917,120]
[343989507,1733169888280,-500.0,0.00026917,120]
[343989508,1733169888318,-559.05,0.00026917,120]
[343989509,1733169888354,-907.5,0.00026917,120]
[343989510,1733169888390,-658.13,0.00026917,120]
[343989511,1733169888432,-500.0,0.00026917,120]
[343989512,1733169888474,-518.27,0.00026917,120]
[343989513,1733169888516,-2812.6,0.00026917,120]
[343989514,1733169888560,-1551.24,0.00026917,120]
[343989515,1733169888607,-500.0,0.00026917,120]
[343989516,1733169888655,-622.04,0.00026917,120]
[343989517,1733169888703,-500.0,0.00026917,120]
[343989518,1733169888745,-1134.58,0.00026917,120]
[343989519,1733169888800,-500.0,0.00026917,120]
[343989520,1733169888843,-723.17,0.00026917,120]
[343989521,1733169888883,-500.0,0.00026917,120]
[343989522,1733169888925,-1392.8,0.00026917,120]
[343989523,1733169888967,-703.37,0.00026917,120]
[343989524,1733169889011,-466.86,0.00026917,120]
[343989525,1733169889052,-500.0,0.00026917,120]
[343989526,1733169889092,-500.0,0.00026917,120]
[343989527,1733169889133,-1785.16,0.00026917,120]
[343989528,1733169889175,-672.83,0.00026917,120]
[343989529,1733169889215,-500.0,0.00026917,120]
[343989530,1733169889260,-2072.12,0.00026917,120]
[343989531,1733169889301,-2151.79,0.00026917,120]
[343989532,1733169889344,-671.1,0.00026917,120]
[343989533,1733169889387,-1217.44,0.00026917,60]
[343989534,1733169889431,-2095.96,0.00026917,120]
[343989535,1733169889479,-500.0,0.00026917,120]
[343989536,1733169889527,-2399.96,0.00026917,120]
[343989537,1733169889575,-500.0,0.00026917,120]
[343989538,1733169889948,-1205.02,0.00026917,120]
[343989539,1733169889990,-731.09,0.00026917,120]
[343989540,1733169890031,-517.92,0.00026917,120]
[343989541,1733169890071,-957.59,0.00026917,120]
[343989542,1733169890112,-500.0,0.00026917,120]
[343989543,1733169890152,-500.0,0.00026917,120]
[343989544,1733169890192,-964.02,0.00026917,120]
[343989545,1733169890230,-1155.0,0.00026917,120]
[343989546,1733169890275,-500.0,0.00026917,120]
[343989547,1733169890317,-1599.85,0.00026917,120]
[343989548,1733169890357,-3145.91,0.00026917,120]
[343989549,1733169890397,-500.0,0.00026917,120]
[343989550,1733169890439,-500.0,0.00026917,120]
[343989551,1733169890484,-500.0,0.00026917,120]
[343989552,1733169890527,-3095.03,0.00026917,120]
[343989553,1733169890571,-966.75,0.00026917,120]
[343989554,1733169890616,-1566.82,0.00026917,120]
[343989555,1733169890658,-3532.86,0.00026917,120]
[343989556,1733169890703,-2087.33,0.00026917,120]
[343989557,1733169890744,-4394.15,0.00026917,120]
[343989558,1733169890784,-1858.53,0.00026917,120]
[343989559,1733169890824,-475.60230128,0.00026917,120]
[343989560,1733169890864,-1050.27,0.00026917,120]
[343989561,1733169890910,-1419.7,0.00026917,120]
[343989562,1733169890950,-704.36,0.00026917,120]
[343989563,1733169890989,-500.0,0.00026917,120]
[343989564,1733169891030,-1155.5,0.00026917,120]
[343989565,1733169891074,-2485.86,0.00026917,120]
[343989566,1733169891113,-3307.46,0.00026917,120]
[343989567,1733169891153,-500.0,0.00026917,120]
[343989568,1733169891191,-619.4,0.00026917,120]
[343989569,1733169891232,-2954.23,0.00026917,120]
[343989570,1733169891274,-500.0,0.00026917,120]
[343989571,1733169891315,-1622.42,0.00026917,120]
[343989572,1733169891356,-1433.94,0.00026917,120]
[343989573,1733169891398,-1486.96,0.00026917,120]
[343989574,1733169891440,-500.0,0.00026917,120]
[343989575,1733169891483,-5702.56,0.00026917,120]
[343989576,1733169891527,-553.01,0.00026917,120]
[343989577,1733169891569,-617.67,0.00026917,120]
[343989578,1733169891614,-4667.69,0.00026917,120]
[343989579,1733169891656,-549.92256094,0.00026917,120]
[343989580,1733169891697,-909.9,0.00026917,120]
[343989581,1733169891741,-2769.56,0.00026917,120]
[343989582,1733169891783,-1527.45,0.00026917,120]
[343989583,1733169891825,-500.0,0.00026917,120]
[343989584,1733169891866,-374.40733585,0.00026917,120]
[343989585,1733169891907,-2607.43,0.00026917,120]
[343989586,1733169891945,-1429.2,0.00026917,120]
[343989587,1733169891984,-500.0,0.00026917,120]
[343989588,1733169892024,-500.0,0.00026917,120]
[343989589,1733169892063,-500.0,0.00026917,120]
[343989590,1733169892102,-1181.82,0.00026917,120]
[343989591,1733169892142,-1289.36,0.00026917,120]
[343989592,1733169892181,-2609.47,0.00026917,120]
[343989593,1733169892220,-847.91,0.00026917,120]
[343989594,1733169892262,-500.0,0.00026917,120]
[343989595,1733169892301,-1577.07,0.00026917,120]
[343989596,1733169892339,-500.0,0.00026917,120]
[343989597,1733169892379,-1229.5,0.00026917,120]
[343989598,1733169892416,-1146.75,0.00026917,120]
[343989599,1733169892456,-870.78,0.00026917,120]
[343989600,1733169892499,-2309.42,0.00026917,120]
[343989601,1733169892540,-500.0,0.00026917,120]
[343989602,1733169892581,-5287.35,0.00026917,120]
[343989603,1733169892624,-6116.17,0.00026917,120]
[343989604,1733169892668,-793.22,0.00026917,120]
[343989605,1733169892711,-500.0,0.00026917,120]
[343989606,1733169892753,-500.0,0.00026917,120]
[343989607,1733169892791,-1023.67,0.00026917,120]
[343989608,1733169892832,-2550.03,0.00026917,120]
[343989609,1733169892873,-1153.56,0.00026917,120]
[343989610,1733169892911,-500.0,0.00026917,120]
[343989611,1733169892951,-2762.05,0.00026917,120]
[343989612,1733169892993,-500.0,0.00026917,120]
[343989613,1733169893033,-514.18,0.00026917,120]
[343989614,1733169893073,-500.0,0.00026917,120]
[343989615,1733169893112,-3535.47,0.00026917,120]
[343989616,1733169893151,-500.0,0.00026917,120]
[343989617,1733169893191,-1417.54,0.00026917,120]
[343989618,1733169893234,-549.1,0.00026917,120]
[343989619,1733169893275,-4776.42,0.00026917,120]
[343989620,1733169893315,-500.0,0.00026917,120]
[343989621,1733169893353,-795.36,0.00026917,120]
[343989622,1733169893394,-890.83,0.00026917,120]
[343989623,1733169893433,-500.0,0.00026917,120]
[343989624,1733169893474,-2411.07,0.00026917,120]
[343989625,1733169893515,-5621.83,0.00026917,120]
[343989626,1733169893557,-991.41,0.00026917,120]
[343989627,1733169893599,-1874.45,0.00026917,120]
[343989628,1733169893642,-1305.92,0.00026917,120]
[343989629,1733169893686,-931.33,0.00026917,120]
[343989630,1733169893731,-1065.56,0.00026917,120]
[343989631,1733169893772,-500.0,0.00026917,120]
[343989632,1733169894013,-500.0,0.00026917,120]
[343989633,1733169894055,-1775.35,0.00026917,120]
[343989634,1733169894096,-679.68,0.00026917,120]
[343989635,1733169894135,-500.0,0.00026917,120]
[343989636,1733169894173,-500.0,0.00026917,120]
[343989637,1733169894214,-500.0,0.00026917,120]
[343989638,1733169894260,-526.93,0.00026917,120]
[343989639,1733169894299,-2317.22,0.00026917,120]
[343989640,1733169894339,-500.0,0.00026917,120]
[343989641,1733169894379,-500.0,0.00026917,120]
[343989642,1733169894420,-500.0,0.00026917,120]
[343989643,1733169894459,-800.64,0.00026917,120]
[343989644,1733169894500,-1036.58,0.00026917,120]
[343989645,1733169894540,-633.81,0.00026917,120]
[343989646,1733169894580,-2205.66,0.00026917,120]
[343989647,1733169894620,-296.46433912,0.00026917,120]
[343989648,1733169894662,-1047.46,0.00026917,120]
[343989649,1733169894704,-5481.99,0.00026917,30]
[343989650,1733169894744,-758.69,0.00026917,120]
[343989651,1733169894784,-1427.38,0.00026917,120]
[343989652,1733169894821,-500.0,0.00026917,120]
[343989653,1733169894859,-514.92,0.00026917,120]
[343989654,1733169894897,-500.0,0.00026917,120]
[343989655,1733169894933,-500.0,0.00026917,120]
[343989656,1733169894974,-641.63,0.00026917,120]
[343989657,1733169895013,-500.0,0.00026917,120]
[343989658,1733169895053,-1447.48,0.00026917,120]
[343989659,1733169895092,-4272.24,0.00026917,120]
[343989660,1733169895131,-560.78,0.00026917,120]
[343989661,1733169895170,-736.23,0.00026917,120]
[343989662,1733169895210,-667.49,0.00026917,120]
[343989663,1733169895255,-844.39,0.00026917,120]
[343989664,1733169895297,-2263.66,0.00026917,120]
[343989665,1733169895340,-3364.95,0.00026917,120]
[343989666,1733169895383,-500.0,0.00026917,120]
[343989667,1733169895426,-2452.77,0.00026917,120]
[343989668,1733169895469,-563.29,0.00026917,120]
[343989669,1733169895518,-500.0,0.00026917,120]
[343989670,1733169895564,-1715.81,0.00026917,120]
[343989671,1733169895612,-500.0,0.00026917,120]
[343989672,1733169895658,-539.85,0.00026917,120]
[343989673,1733169895702,-1059.98,0.00026917,120]
[343989674,1733169895747,-2422.49,0.00026917,120]
[343989675,1733169895790,-500.0,0.00026917,120]
[343989676,1733169895830,-1790.06,0.00026917,120]
[343989677,1733169895871,-500.0,0.00026917,120]
[343989678,1733169895912,-1103.76,0.00026917,120]
[343989679,1733169895953,-1000.34,0.00026917,120]
[343989680,1733169895996,-1289.89,0.00026917,120]
[343989681,1733169896037,-500.0,0.00026917,120]
[343989682,1733169896077,-2192.16,0.00026917,120]
[343989683,1733169896118,-1228.74,0.00026917,120]
[343989684,1733169896161,-957.9,0.00026917,120]
[343989685,1733169896200,-780.49,0.00026917,120]
[343989686,1733169896239,-2513.91,0.00026917,120]
[343989687,1733169896284,-500.0,0.00026917,120]
[343989688,1733169896327,-1177.37,0.00026917,120]
[343989689,1733169896369,-1711.39,0.00026917,120]
[343989690,1733169896413,-13756.05,0.00026917,120]
[343989691,1733169896457,-1223.82,0.00026917,120]
[343989692,1733169896503,-500.0,0.00026917,120]
[343989693,1733169896550,-19783.26,0.00026917,120]
[343989694,1733169896595,-814.1,0.00026917,120]
[343989695,1733169896644,-1144.32,0.00026917,120]
[343989696,1733169896690,-500.0,0.00026917,120]
[343989697,1733169896733,-566.12,0.00026917,120]
[343989698,1733169896778,-500.0,0.00026917,120]
[343989699,1733169896820,-3463.96,0.00026917,120]
[343989700,1733169896865,-2471.59,0.00026917,120]
[343989701,1733169896908,-4111.41,0.00026917,120]
[343989702,1733169896950,-593.51,0.00026917,120]
[343989703,1733169896993,-2015.47,0.00026917,120]
[343989704,1733169897035,-2902.34,0.00026917,120]
[343989705,1733169897080,-21330.27,0.00026917,120]
[343989706,1733169897123,-898.43,0.00026917,120]
[343989707,1733169897164,-3255.42,0.00026917,120]
[343989708,1733169897205,-500.56,0.00026917,120]
[343989709,1733169897249,-500.0,0.00026917,120]
[343989710,1733169897290,-938.21,0.00026917,120]
[343989711,1733169897330,-500.0,0.00026917,120]
[343989712,1733169897372,-599.12,0.00026917,120]
[343989713,1733169897414,-500.0,0.00026917,120]
[343989714,1733169897462,-3352.32,0.00026917,120]
[343989715,1733169897508,-768.34,0.00026917,120]
[343989716,1733169897553,-775.22,0.00026917,120]
[343989717,1733169897597,-500.0,0.00026917,120]
[343989718,1733169897652,-500.0,0.00026917,120]
[343989719,1733169897702,-944.8,0.00026917,120]
[343989720,1733169897749,-1636.96,0.00026917,120]
[343989721,1733169897795,-1458.9,0.00026917,120]
[343989722,1733169897840,-670.62,0.00026917,120]
[343989723,1733169897886,-923.85,0.00026917,120]
[343989724,1733169897928,-698.71,0.00026917,120]
[343989725,1733169897971,-3466.98,0.00026917,120]
[343989726,1733169898282,-500.0,0.00026917,120]
[343989727,1733169898327,-500.0,0.00026917,120]
[343989728,1733169898370,-1512.19,0.00026917,120]
[343989729,1733169898413,-592.57,0.00026917,120]
[343989730,1733169898455,-6797.27,0.00026917,120]
[343989731,1733169898498,-1560.09,0.00026917,120]
[343989732,1733169898541,-676.63,0.00026917,120]
[343989733,1733169898585,-4584.49,0.00026917,120]
[343989734,1733169898628,-500.0,0.00026917,120]
[343989735,1733169898672,-2820.52,0.00026917,120]
[343989736,1733169898714,-3000.0,0.00026917,120]
[343989737,1733169898756,-1361.04,0.00026917,120]
[343989738,1733169898794,-2781.44,0.00026917,120]
[343989739,1733169898832,-1258.23,0.00026917,120]
[343989740,1733169898869,-500.0,0.00026917,120]
[343989741,1733169898908,-500.0,0.00026917,120]
[343989742,1733169898948,-2650.17,0.00026917,120]
[343989743,1733169898989,-3300.64,0.00026917,120]
[343989744,1733169899030,-2017.79,0.00026917,120]
[343989745,1733169899071,-500.0,0.00026917,120]
[343989746,1733169899111,-1286.34,0.00026917,120]
[343989747,1733169899153,-1387.45,0.00026917,120]
[343989748,1733169899193,-3693.67,0.00026917,120]
[343989749,1733169899235,-500.0,0.00026917,120]
[343989750,1733169899275,-3023.16,0.00026917,120]
[343989751,1733169899317,-1193.08,0.00026917,120]
[343989752,1733169899362,-3240.77,0.00026917,120]
[343989753,1733169899404,-2236.02,0.00026917,120]
[343989754,1733169899446,-1679.56,0.00026917,120]
[343989755,1733169899489,-655.53,0.00026917,120]
[343989756,1733169899532,-500.0,0.00026917,120]
[343989757,1733169899574,-1614.33,0.00026917,120]
[343989758,1733169899616,-1505.75,0.00026917,120]
[343989759,1733169899658,-500.0,0.00026917,120]
[343989760,1733169899699,-500.0,0.00026917,120]
[343989761,1733169899738,-150.661864,0.00026942,31]
[343989762,1733169899779,-1724.13,0.00026994,30]
[343989763,1733169899819,-196.93080062,0.00027,120]
[343989764,1733169899861,-200.0,0.00027123,120]
[343989765,1733169899900,-500.0,0.00027191,120]
[343989766,1733169899941,-500.0,0.00027191,120]
[343989767,1733169899983,-500.0,0.00027191,120]
[343989768,1733169900023,-500.0,0.00027191,120]
[343989769,1733169900065,-178.37835081,0.00027191,120]
[343989770,1733169900108,-500.0,0.00027191,120]
[343989771,1733169900148,-500.0,0.00027191,120]
[343989772,1733169900189,-500.0,0.00027191,120]
[343989773,1733169900234,-500.0,0.00027191,120]
[343989774,1733169900277,-500.0,0.00027191,120]
[343989775,1733169900320,-500.0,0.00027191,120]
[343989776,1733169900361,-500.0,0.00027191,120]
[343989777,1733169900403,-500.0,0.00027191,120]
[343989778,1733169900448,-500.0,0.00027191,120]
[343989779,1733169900495,-500.0,0.00027191,120]
[343989780,1733169900542,-500.0,0.00027191,120]
[343989781,1733169900589,-500.0,0.00027191,120]
[343989782,1733169900638,-500.0,0.00027191,120]
[343989783,1733169900687,-500.0,0.00027191,120]
[343989784,1733169900733,-500.0,0.00027191,120]
[343989785,1733169900779,-223.65974907,0.00027191,120]
[343989786,1733169900819,-500.0,0.00027191,120]
[343989787,1733169900860,-500.0,0.00027191,120]
[343989788,1733169900899,-500.0,0.00027191,120]
[343989789,1733169900939,-500.0,0.00027191,120]
[343989790,1733169900985,-500.0,0.00027191,120]
[343989791,1733169901028,-500.0,0.00027191,120]
[343989792,1733169901068,-500.0,0.00027191,120]
[343989793,1733169901108,-518.0344341,0.00027191,120]
[343989794,1733169901150,-500.0,0.00027191,120]
[343989795,1733169901190,-500.0,0.00027191,120]
[343989796,1733169901236,-500.0,0.00027191,120]
[343989797,1733169901281,-500.0,0.00027191,120]
[343989798,1733169901321,-972.55,0.00027191,120]
[343989799,1733169901362,-976.93,0.00027191,120]
[343989800,1733169901403,-500.0,0.00027191,120]
[343989801,1733169901446,-153.07152081,0.00027191,120]
[343989802,1733169901486,-500.0,0.00027191,120]
[343989803,1733169901527,-830.72,0.00027191,120]
[343989804,1733169901569,-887.04,0.00027191,120]
[343989805,1733169901625,-500.0,0.00027191,120]
[343989806,1733169901670,-500.0,0.00027191,120]
[343989807,1733169901712,-639.95,0.00027191,120]
[343989808,1733169901757,-500.0,0.00027191,120]
[343989809,1733169901798,-2630.4,0.00027191,120]
[343989810,1733169901841,-500.0,0.00027191,120]
[343989811,1733169901881,-1084.35,0.00027191,120]
[343989812,1733169901922,-500.0,0.00027191,120]
[343989813,1733169901962,-500.0,0.00027191,120]
[343989814,1733169902011,-2476.13,0.00027191,120]
[343989815,1733169902052,-500.0,0.00027191,120]
[343989816,1733169902092,-500.0,0.00027191,120]
[343989817,1733169902131,-962.0,0.00027191,120]
[343989818,1733169902171,-500.0,0.00027191,120]
[343989819,1733169902211,-549.56,0.00027191,120]
[343989820,1733169902484,-500.0,0.00027191,120]
[343989821,1733169902528,-735.72,0.00027191,120]
[343989822,1733169902571,-500.0,0.00027191,120]
[343989823,1733169902612,-577.19,0.00027191,120]
[343989824,1733169902656,-500.0,0.00027191,120]
[343989825,1733169902697,-741.16,0.00027191,120]
[343989826,1733169902736,-500.0,0.00027191,120]
[343989827,1733169902776,-895.0,0.00027191,120]
[343989828,1733169902815,-618.74107393,0.00027191,120]
[343989829,1733169902855,-500.0,0.00027191,120]
[343989830,1733169902892,-500.0,0.00027191,120]
[343989831,1733169902930,-1132.26,0.00027191,120]
[343989832,1733169902969,-500.0,0.00027191,120]
[343989833,1733169903008,-1511.73,0.00027191,120]
[343989834,1733169903062,-500.0,0.00027191,120]
[343989835,1733169903108,-500.0,0.00027191,120]
[343989836,1733169903153,-742.76,0.00027191,120]
[343989837,1733169903198,-1844.92,0.00027191,120]
[343989838,1733169903245,-500.0,0.00027191,120]
[343989839,1733169903293,-674.34,0.00027191,120]
[343989840,1733169903339,-500.0,0.00027191,120]
[343989841,1733169903386,-656.68,0.00027191,120]
[343989842,1733169903431,-500.0,0.00027191,120]
[343989843,1733169903476,-1030.51,0.00027191,120]
[343989844,1733169903530,-500.0,0.00027191,120]
[343989845,1733169903578,-843.35,0.00027191,120]
[343989846,1733169903627,-500.0,0.00027191,120]
[343989847,1733169903676,-500.0,0.00027191,120]
[343989848,1733169903725,-673.42,0.00027191,120]
[343989849,1733169903776,-619.73,0.00027191,120]
[343989850,1733169903822,-500.0,0.00027191,120]
[343989851,1733169903873,-1749.32,0.00027191,120]
[343989852,1733169903921,-500.0,0.00027191,120]
[343989853,1733169903971,-1859.06,0.00027191,120]
[343989854,1733169904024,-500.0,0.00027191,120]
[343989855,1733169904072,-500.0,0.00027191,120]
[343989856,1733169904118,-500.0,0.00027191,120]
[343989857,1733169904166,-2460.03,0.00027191,120]
[343989858,1733169904212,-735.25,0.00027191,120]
[343989859,1733169904262,-1203.83,0.00027191,120]
[343989860,1733169904311,-755.11,0.00027191,120]
[343989861,1733169904360,-605.28,0.00027191,120]
[343989862,1733169904409,-1404.0,0.00027191,120]
[343989863,1733169904459,-942.74,0.00027191,120]
[343989864,1733169904509,-578.22,0.00027191,120]
[343989865,1733169904558,-1539.81,0.00027191,120]
[343989866,1733169904607,-714.85,0.00027191,120]
[343989867,1733169904659,-564.14,0.00027191,120]
[343989868,1733169904708,-220.065015,0.00027191,120]
[343989869,1733169904755,-1157.3,0.00027191,90]
[343989870,1733169904801,-281.73747112,0.00027191,120]
[343989871,1733169904848,-500.0,0.00027191,120]
[343989872,1733169904895,-2248.53,0.00027191,120]
[343989873,1733169904941,-500.0,0.00027191,120]
[343989874,1733169904991,-511.8,0.00027191,120]
[343989875,1733169905037,-500.0,0.00027191,120]
[343989876,1733169905083,-500.0,0.00027191,120]
[343989877,1733169905129,-990.08,0.00027191,120]
[343989878,1733169905174,-500.0,0.00027191,120]
[343989879,1733169905219,-1429.88,0.00027191,120]
[343989880,1733169905270,-500.0,0.00027191,120]
[343989881,1733169905317,-500.0,0.00027191,120]
[343989882,1733169905363,-500.0,0.00027191,120]
[343989883,1733169905407,-500.0,0.00027191,120]
[343989884,1733169905452,-759.91,0.00027191,120]
[343989885,1733169905498,-1022.75,0.00027191,120]
[343989886,1733169905544,-500.0,0.00027191,120]